fUSD/lending_fUSD_20240930
["ID","MTS","AMOUNT","RATE_DAILY","PERIOD"]
[339522274,1727676632353,-150.0,0.00011504,2]
[339522275,1727676632362,-3419.53,0.00011507,2]
[339522276,1727676632372,-150.0,0.00011521,2]
[339522277,1727676632381,-150.0,0.00011532,2]
[339522278,1727676632394,-150.0,0.00011556,2]
[339522279,1727676632403,-150.0,0.00011556,2]
[339522280,1727676632412,-150.0,0.00011568,2]
[339522281,1727676632422,-179.826871,0.00011577,2]
[339522282,1727676632432,-194.872908,0.00011577,2]
[339522283,1727676632442,-3227.686643,0.00011577,2]
[339522284,1727676632451,-3058.263491,0.00011577,2]
[339522285,1727676632460,-3767.14505,0.00011577,2]
[339522286,1727676632470,-211.789877,0.00011577,2]
[339522287,1727676632479,-536.19084458,0.00011577,2]
[339522290,1727676637942,-471.67581642,0.00011577,2]
[339522291,1727676637952,-150.0,0.00011608,2]
[339522292,1727676637962,-150.0,0.00011614,2]
[339522293,1727676637972,-150.0,0.00011628,2]
[339522294,1727676637981,-77.52001622,0.0001166,2]
[339522295,1727676638121,-72.47998378,0.0001166,2]
[339522296,1727676638131,-150.0,0.0001166,2]
[339522297,1727676638141,-150.0,0.00011707,2]
[339522298,1727676638151,-150.0,0.00011712,2]
[339522299,1727676638160,-150.0,0.00011712,2]
[339522300,1727676638170,-179.826871,0.00011722,2]
[339522301,1727676638374,-3227.686643,0.00011722,2]
[339522302,1727676638385,-3058.263491,0.00011722,2]
[339522303,1727676638394,-3767.14505,0.00011722,2]
[339522304,1727676638404,-211.789877,0.00011722,2]
[339522305,1727676638413,-1007.866661,0.00011722,2]
[339522306,1727676638423,-150.0,0.00011724,2]
[339522307,1727676638433,-150.0,0.00011753,2]
[339522308,1727676638442,-150.0,0.00011764,2]
[339522309,1727676638452,-150.0,0.00011799,2]
[339522310,1727676638461,-150.0,0.00011816,2]
[339522311,1727676638471,-150.0,0.0001182,2]
[339522312,1727676638480,-150.0,0.00011845,2]
[339522313,1727676638489,-179.826871,0.00011867,2]
[339522314,1727676638499,-3227.686643,0.00011867,2]
[339522315,1727676638508,-3058.263491,0.00011867,2]
[339522317,1727676638517,-3767.14505,0.00011867,2]
[339522319,1727676638526,-211.789877,0.00011867,2]
[339522320,1727676638535,-1007.866661,0.00011867,2]
[339522321,1727676638548,-150.0,0.00011868,2]
[339522322,1727676638558,-150.0,0.00011868,2]
[339522323,1727676638568,-150.0,0.00011892,2]
[339522324,1727676638577,-150.0,0.00011917,2]
[339522325,1727676638587,-150.0,0.00011921,2]
[339522326,1727676638596,-150.0,0.00011938,2]
[339522327,1727676638606,-64.77992445,0.00011943,2]
[339522328,1727676638622,-6607.8,0.00011943,2]
[339522329,1727676638633,-559.12249875,0.00011943,2]
[339522338,1727676640137,-1558.94161727,0.00011943,2]
[339522339,1727676640168,-2609.52995953,0.00011943,2]
[339522341,1727676640179,-5867.0,0.00011943,2]
[339522344,1727676640190,-181.12,0.00011943,2]
[339522345,1727676640200,-1147.0,0.00011943,2]
[339522347,1727676640210,-150.0,0.00011973,2]
[339522349,1727676640219,-150.0,0.00011984,2]
[339522351,1727676640228,-179.826871,0.00012011,2]
[339522353,1727676640238,-3227.686643,0.00012011,2]
[339522355,1727676640247,-3058.263491,0.00012011,2]
[339522357,1727676640256,-3767.14505,0.00012011,2]
[339522359,1727676640266,-211.789877,0.00012011,2]
[339522361,1727676640276,-1007.866661,0.00012011,2]
[339522363,1727676640285,-150.0,0.00012013,2]
[339522365,1727676640295,-150.0,0.00012025,2]
[339522367,1727676640305,-150.0,0.00012025,2]
[339522368,1727676640318,-150.0,0.0001203,2]
[339522369,1727676640327,-3419.53,0.00012055,2]
[339522370,1727676640336,-180.0,0.00012055,2]
[339522372,1727676640346,-150.0,0.00012077,2]
[339522373,1727676640355,-150.0,0.00012077,2]
[339522374,1727676640364,-150.0,0.00012109,2]
[339522375,1727676640373,-150.0,0.00012123,2]
[339522376,1727676640382,-422.34458308,0.00012128,2]
[339522377,1727676640392,-150.0,0.00012129,2]
[339522378,1727676640402,-179.826871,0.00012156,2]
[339522379,1727676640411,-3227.686643,0.00012156,2]
[339522380,1727676640421,-3058.263491,0.00012156,2]
[339522381,1727676640430,-3767.14505,0.00012156,2]
[339522382,1727676640440,-211.789877,0.00012156,2]
[339522383,1727676640449,-1007.866661,0.00012156,2]
[339522384,1727676640460,-194.872908,0.00012156,2]
[339522385,1727676640470,-150.0,0.00012169,2]
[339522386,1727676640479,-150.0,0.00012181,2]
[339522387,1727676640488,-150.0,0.00012181,2]
[339522388,1727676640498,-150.0,0.00012205,2]
[339522389,1727676640507,-150.0,0.00012216,2]
[339522390,1727676640519,-150.0,0.00012233,2]
[339522391,1727676640529,-150.0,0.00012262,2]
[339522392,1727676640538,-217.8,0.00012265,2]
[339522393,1727676640548,-453.778,0.00012268,2]
[339522394,1727676640558,-1296.0,0.00012268,2]
[339522395,1727676640567,-1263.0,0.00012268,2]
[339522396,1727676640576,-632.854,0.00012268,2]
[339522397,1727676640585,-933.0,0.00012268,2]
[339522398,1727676640594,-809.0,0.00012268,2]
[339522399,1727676640603,-1904.0,0.00012268,2]
[339522400,1727676640613,-554.0,0.00012268,2]
[339522401,1727676640622,-3349.0,0.00012268,2]
[339522402,1727676640631,-807.0,0.00012268,2]
[339522404,1727676640640,-1911.0,0.00012268,2]
[339522406,1727676640649,-150.0,0.00012285,2]
[339522407,1727676640658,-3712.4026,0.00012293,2]
[339522409,1727676640667,-293.9926,0.00012293,2]
[339522411,1727676640676,-3815.33525329,0.00012296,2]
[339522413,1727676640686,-150.0,0.00012301,2]
[339522415,1727676640695,-150.0,0.00012308,2]
[339522417,1727676640704,-418.011,0.00012327,2]
[339522419,1727676640714,-160.892,0.00012327,2]
[339522421,1727676640724,-150.0,0.00012337,2]
[339522423,1727676640733,-150.0,0.00012337,2]
[339522425,1727676640743,-3815.33525328,0.00012352,2]
[339522427,1727676640752,-150.0,0.00012354,2]
[339522429,1727676640762,-151.40165,0.00012375,2]
[339522431,1727676640771,-2011.72596066,0.00012375,2]
[339522433,1727676640782,-150.0,0.00012389,2]
[339522435,1727676640791,-6920.75,0.00012393,2]
[339522437,1727676640801,-161701.8234,0.00012393,2]
[339522439,1727676640811,-500.0,0.00012397,2]
[339522441,1727676640820,-2000.0,0.00012397,2]
[339522443,1727676640829,-500.0,0.00012397,2]
[339522445,1727676640839,-150.0,0.00012397,2]
[339522447,1727676640849,-3416.9018,0.00012399,2]
[339522449,1727676640858,-377.43320689,0.00012399,2]
[339522451,1727676640868,-159.85984811,0.00012399,2]
[339522453,1727676640877,-1568.37465232,0.00012399,2]
[339522455,1727676640887,-377.43320688,0.00012399,2]
[339522457,1727676640896,-377.43320688,0.000124,2]
[339522459,1727676640905,-377.43320688,0.000124,2]
[339522461,1727676640915,-2593.05079,0.000124,2]
[339522463,1727676640924,-105341.5083,0.000124,2]
[339522465,1727676640934,-308.46,0.000124,2]
[339522467,1727676640943,-377.43320688,0.000124,2]
[339522469,1727676640953,-1009.9,0.000124,2]
[339522471,1727676640963,-198.17253023,0.000124,2]
[339522473,1727676640974,-198.17253023,0.000124,2]
[339522475,1727676640984,-198.67,0.000124,2]
[339522477,1727676640993,-161.90006652,0.000124,2]
[339522479,1727676641003,-161.90006652,0.000124,2]
[339522481,1727676641013,-161.90006652,0.000124,2]
[339522483,1727676641022,-161.90006652,0.000124,2]
[339522485,1727676641032,-161.90006652,0.000124,2]
[339522487,1727676641042,-162.4,0.000124,2]
[339522489,1727676641053,-1004.0,0.000124,2]
[339522491,1727676641063,-153.18088901,0.000124,2]
[339522493,1727676641072,-153.18088901,0.000124,2]
[339522495,1727676641082,-153.18088901,0.000124,2]
[339522497,1727676641092,-153.18088901,0.000124,2]
[339522499,1727676641102,-153.18088901,0.000124,2]
[339522501,1727676641112,-153.18088901,0.000124,2]
[339522503,1727676641122,-153.68,0.000124,2]
[339522505,1727676641132,-178.73954412,0.000124,2]
[339522507,1727676641142,-150.0,0.00012401,2]
[339522509,1727676641152,-3815.33525328,0.00012408,2]
[339522511,1727676641161,-150.0,0.00012441,2]
[339522513,1727676641171,-167.13,0.00012445,2]
[339522515,1727676641181,-166.35,0.00012445,2]
[339522517,1727676641191,-150.0,0.00012447,2]
[339522519,1727676641200,-3815.33525328,0.00012464,2]
[339522521,1727676641210,-500.0,0.00012473,2]
[339522523,1727676641219,-156.54,0.00012487,2]
[339522525,1727676641229,-499.27319209,0.00012488,2]
[339522527,1727676641238,-2000.0,0.0001249,2]
[339522529,1727676641247,-499.27319209,0.0001249,2]
[339522531,1727676641257,-499.27319209,0.0001249,2]
[339522533,1727676641267,-500.70867515,0.00012493,2]
[339522535,1727676641277,-507.61846392,0.00012493,2]
[339522537,1727676641286,-500.0,0.00012493,2]
[339522539,1727676641295,-904.74,0.00012493,2]
[339522541,1727676641306,-500.0,0.00012493,2]
[339522543,1727676641318,-501.46975176,0.00012493,2]
[339522545,1727676641328,-709.54,0.00012493,2]
[339522547,1727676641337,-501.3645053,0.00012493,2]
[339522549,1727676641347,-500.0,0.00012493,2]
[339522551,1727676641358,-501.98572524,0.00012493,2]
[339522553,1727676641368,-500.0,0.00012493,2]
[339522555,1727676641378,-503.56404157,0.00012493,2]
[339522557,1727676641388,-505.64387885,0.00012493,2]
[339522559,1727676641397,-501.66024363,0.00012493,2]
[339522561,1727676641406,-500.0,0.00012493,2]
[339522562,1727676641416,-500.0,0.00012493,2]
[339522564,1727676641425,-500.0,0.00012493,2]
[339522566,1727676641434,-500.0,0.00012493,2]
[339522568,1727676641443,-540.12993975,0.00012493,2]
[339522569,1727676641452,-500.0,0.00012493,2]
[339522571,1727676641462,-500.0,0.00012493,2]
[339522573,1727676641471,-502.84943793,0.00012493,2]
[339522575,1727676641480,-500.0,0.00012493,2]
[339522577,1727676641491,-587.34,0.00012493,2]
[339522579,1727676641500,-500.0,0.00012493,2]
[339522581,1727676641509,-507.48166642,0.00012493,2]
[339522583,1727676641519,-500.0,0.00012493,2]
[339522585,1727676641529,-653.9,0.00012493,2]
[339522587,1727676641538,-501.58081984,0.00012493,2]
[339522588,1727676641548,-500.0,0.00012493,2]
[339522590,1727676641558,-500.0,0.00012493,2]
[339522592,1727676641567,-500.0,0.00012493,2]
[339522594,1727676641577,-500.0,0.00012493,2]
[339522596,1727676641586,-500.0,0.00012493,2]
[339522598,1727676641595,-504.49963262,0.00012493,2]
[339522600,1727676641605,-500.0,0.00012493,2]
[339522602,1727676641615,-500.0,0.00012493,2]
[339522604,1727676641624,-2158.36,0.00012493,2]
[339522606,1727676641634,-500.0,0.00012493,2]
[339522608,1727676641643,-500.0,0.00012493,2]
[339522610,1727676641653,-500.0,0.00012493,2]
[339522612,1727676641662,-500.0,0.00012493,2]
[339522614,1727676641672,-500.0,0.00012493,2]
[339522616,1727676641681,-500.0,0.00012493,2]
[339522618,1727676641689,-500.0,0.00012493,2]
[339522620,1727676641698,-500.0,0.00012493,2]
[339522622,1727676641708,-500.0,0.00012493,2]
[339522623,1727676641717,-500.0,0.00012493,2]
[339522625,1727676641726,-500.0,0.00012493,2]
[339522627,1727676641735,-500.0,0.00012493,2]
[339522629,1727676641744,-511.26222362,0.00012493,2]
[339522631,1727676641754,-502.0205047,0.00012493,2]
[339522633,1727676641763,-500.0,0.00012493,2]
[339522635,1727676641772,-500.0,0.00012493,2]
[339522637,1727676641781,-500.0,0.00012493,2]
[339522639,1727676641791,-501.96994845,0.00012493,2]
[339522641,1727676641806,-498.69132494,0.00012493,2]
[339522643,1727676641818,-500.0,0.00012493,2]
[339522645,1727676641827,-500.0,0.00012493,2]
[339522647,1727676641837,-500.0,0.00012493,2]
[339522649,1727676641847,-500.0,0.00012493,2]
[339522650,1727676641857,-500.0,0.00012493,2]
[339522652,1727676641866,-500.0,0.00012493,2]
[339522654,1727676641875,-500.0,0.00012493,2]
[339522656,1727676641885,-500.0,0.00012493,2]
[339522658,1727676641894,-500.0,0.00012493,2]
[339522660,1727676641903,-500.0,0.00012493,2]
[339522662,1727676641912,-500.0,0.00012493,2]
[339522664,1727676641922,-502.34937121,0.00012493,2]
[339522666,1727676641932,-500.0,0.00012493,2]
[339522668,1727676641942,-500.0,0.00012493,2]
[339522670,1727676641955,-502.23581987,0.00012493,2]
[339522672,1727676641964,-500.0,0.00012493,2]
[339522674,1727676641974,-500.0,0.00012493,2]
[339522676,1727676641984,-500.0,0.00012493,2]
[339522678,1727676641993,-575.0,0.00012493,2]
[339522680,1727676642003,-500.0,0.00012493,2]
[339522682,1727676642013,-17266.19,0.00012493,2]
[339522684,1727676642023,-500.0,0.00012493,2]
[339522686,1727676642032,-500.0,0.00012493,2]
[339522688,1727676642042,-500.0,0.00012493,2]
[339522689,1727676642053,-500.0,0.00012493,2]
[339522691,1727676642062,-500.0,0.00012493,2]
[339522693,1727676642072,-3223.19,0.00012493,2]
[339522695,1727676642081,-500.0,0.00012493,2]
[339522697,1727676642091,-3975.07,0.00012493,2]
[339522699,1727676642100,-1814.87,0.00012493,2]
[339522701,1727676642110,-500.0,0.00012493,2]
[339522703,1727676642119,-500.0,0.00012493,2]
[339522705,1727676642129,-500.0,0.00012493,2]
[339522707,1727676642140,-500.0,0.00012493,2]
[339522709,1727676642151,-500.0,0.00012493,2]
[339522711,1727676642160,-150.00000001,0.00012493,2]
[339522713,1727676642169,-150.0,0.00012493,2]
[339522715,1727676642178,-150.0,0.00012493,2]
[339522717,1727676642188,-151.03496792,0.00012493,2]
[339522719,1727676642197,-17266.19,0.00012497,2]
[339522721,1727676642206,-500.0,0.00012498,2]
[339522722,1727676642215,-904.74,0.00012498,2]
[339522724,1727676642224,-500.0,0.00012498,2]
[339522726,1727676642235,-709.54,0.00012498,2]
[339522728,1727676642244,-500.0,0.00012498,2]
[339522730,1727676642254,-500.0,0.00012498,2]
[339522732,1727676642263,-500.0,0.00012498,2]
[339522734,1727676642273,-500.0,0.00012498,2]
[339522736,1727676642283,-500.0,0.00012498,2]
[339522738,1727676642292,-500.0,0.00012498,2]
[339522740,1727676642304,-500.0,0.00012498,2]
[339522742,1727676642316,-500.0,0.00012498,2]
[339522744,1727676642327,-587.34,0.00012498,2]
[339522746,1727676642337,-500.0,0.00012498,2]
[339522748,1727676642347,-500.0,0.00012498,2]
[339522750,1727676642359,-653.9,0.00012498,2]
[339522752,1727676642368,-653.9,0.00012498,2]
[339522754,1727676642378,-500.0,0.00012498,2]
[339522756,1727676642388,-500.0,0.00012498,2]
[339522758,1727676642398,-500.0,0.00012498,2]
[339522760,1727676642407,-500.0,0.00012498,2]
[339522762,1727676642416,-500.0,0.00012498,2]
[339522764,1727676642425,-500.0,0.00012498,2]
[339522766,1727676642435,-500.0,0.00012498,2]
[339522768,1727676642444,-500.0,0.00012498,2]
[339522769,1727676642453,-500.0,0.00012498,2]
[339522771,1727676642463,-500.0,0.00012498,2]
[339522773,1727676642472,-500.0,0.00012498,2]
[339522775,1727676642482,-311.60305832,0.00012498,2]
[339522777,1727676642491,-2158.36,0.00012498,2]
[339522779,1727676642501,-2158.36,0.00012498,2]
[339522781,1727676642510,-505.36327144,0.00012498,2]
[339522783,1727676642519,-500.0,0.00012498,2]
[339522785,1727676642529,-500.0,0.00012498,2]
[339522787,1727676642538,-500.0,0.00012498,2]
[339522789,1727676642548,-500.0,0.00012498,2]
[339522791,1727676642557,-500.0,0.00012498,2]
[339522793,1727676642566,-500.0,0.00012498,2]
[339522795,1727676642575,-500.0,0.00012498,2]
[339522797,1727676642585,-500.0,0.00012498,2]
[339522799,1727676642595,-500.0,0.00012498,2]
[339522801,1727676642605,-500.0,0.00012498,2]
[339522803,1727676642614,-500.0,0.00012498,2]
[339522806,1727676642623,-500.0,0.00012498,2]
[339522809,1727676642632,-500.0,0.00012498,2]
[339522811,1727676642642,-500.0,0.00012498,2]
[339522814,1727676642651,-500.0,0.00012498,2]
[339522816,1727676642660,-500.0,0.00012498,2]
[339522818,1727676642669,-500.0,0.00012498,2]
[339522820,1727676642678,-500.0,0.00012498,2]
[339522822,1727676642687,-500.0,0.00012498,2]
[339522824,1727676642696,-500.0,0.00012498,2]
[339522826,1727676642706,-500.0,0.00012498,2]
[339522828,1727676642715,-500.0,0.00012498,2]
[339522830,1727676642724,-500.0,0.00012498,2]
[339522832,1727676642733,-493.76,0.00012498,2]
[339522834,1727676642743,-554.32190666,0.00012498,2]
[339522836,1727676642752,-500.0,0.00012498,2]
[339522838,1727676642761,-500.0,0.00012498,2]
[339522840,1727676642770,-500.0,0.00012498,2]
[339522842,1727676642779,-500.0,0.00012498,2]
[339522844,1727676642788,-502.36037754,0.00012498,2]
[339522845,1727676642798,-500.0,0.00012498,2]
[339522847,1727676642808,-500.0,0.00012498,2]
[339522849,1727676642817,-500.0,0.00012498,2]
[339522851,1727676642826,-500.0,0.00012498,2]
[339522853,1727676642835,-500.0,0.00012498,2]
[339522855,1727676642844,-500.0,0.00012498,2]
[339522857,1727676642853,-500.0,0.00012498,2]
[339522859,1727676642862,-500.0,0.00012498,2]
[339522861,1727676642872,-500.0,0.00012498,2]
[339522863,1727676642882,-500.0,0.00012498,2]
[339522865,1727676642891,-500.0,0.00012498,2]
[339522867,1727676642900,-500.0,0.00012498,2]
[339522869,1727676642909,-500.0,0.00012498,2]
[339522871,1727676642918,-500.0,0.00012498,2]
[339522873,1727676642927,-500.0,0.00012498,2]
[339522875,1727676642936,-500.0,0.00012498,2]
[339522877,1727676642945,-500.0,0.00012498,2]
[339522879,1727676642954,-500.0,0.00012498,2]
[339522881,1727676642963,-500.0,0.00012498,2]
[339522883,1727676642973,-502.20640233,0.00012498,2]
[339522885,1727676642982,-575.0,0.00012498,2]
[339522887,1727676642991,-500.0,0.00012498,2]
[339522889,1727676643000,-522.12737131,0.00012498,2]
[339522891,1727676643010,-17266.19,0.00012498,2]
[339522893,1727676643019,-17266.19,0.00012498,2]
[339522895,1727676643028,-17266.19,0.00012498,2]
[339522897,1727676643037,-17266.19,0.00012498,2]
[339522899,1727676643049,-500.0,0.00012498,2]
[339522901,1727676643058,-500.0,0.00012498,2]
[339522902,1727676643067,-500.0,0.00012498,2]
[339522904,1727676643077,-500.0,0.00012498,2]
[339522906,1727676643087,-500.0,0.00012498,2]
[339522908,1727676643096,-500.0,0.00012498,2]
[339522911,1727676643106,-482.0,0.00012498,2]
[339522913,1727676643116,-500.0,0.00012498,2]
[339522915,1727676643125,-500.0,0.00012498,2]
[339522917,1727676643136,-3223.19,0.00012498,2]
[339522919,1727676643146,-3223.19,0.00012498,2]
[339522921,1727676643157,-170.69,0.00012498,2]
[339522923,1727676643166,-3975.07,0.00012498,2]
[339522925,1727676643175,-3975.07,0.00012498,2]
[339522927,1727676643186,-1814.87,0.00012498,2]
[339522929,1727676643196,-1814.87,0.00012498,2]
[339522931,1727676643206,-500.0,0.00012498,2]
[339522933,1727676643215,-521.72423909,0.00012498,2]
[339522935,1727676643225,-500.0,0.00012498,2]
[339522937,1727676643235,-500.0,0.00012498,2]
[339522939,1727676643244,-500.0,0.00012498,2]
[339522941,1727676643254,-559.31626976,0.00012498,2]
[339522943,1727676643264,-503.03,0.00012498,2]
[339522945,1727676643275,-194.2290262,0.00012499,2]
[339522947,1727676643284,-259715.80227983,0.00012499,2]
[339522949,1727676643293,-299.45217015,0.00012499,2]
[339522951,1727676643304,-11888.61514557,0.00012499,2]
[339522953,1727676643322,-500.0,0.00012499,2]
[339522955,1727676643332,-500.0,0.00012499,2]
[339522957,1727676643342,-500.0,0.00012499,2]
[339522959,1727676643352,-500.0,0.00012499,2]
[339522961,1727676643362,-500.0,0.00012499,2]
[339522963,1727676643371,-500.0,0.00012499,2]
[339522965,1727676643381,-500.0,0.00012499,2]
[339522967,1727676643390,-500.0,0.00012499,2]
[339522969,1727676643400,-500.0,0.00012499,2]
[339522971,1727676643409,-500.0,0.00012499,2]
[339522973,1727676643419,-370.44225051,0.00012499,2]
[339522975,1727676643428,-904.74,0.00012499,2]
[339522977,1727676643437,-904.74,0.00012499,2]
[339522979,1727676643447,-904.74,0.00012499,2]
[339522981,1727676643456,-904.74,0.00012499,2]
[339522983,1727676643465,-904.74,0.00012499,2]
[339522985,1727676643475,-904.74,0.00012499,2]
[339522987,1727676643484,-904.74,0.00012499,2]
[339522989,1727676643494,-904.74,0.00012499,2]
[339522991,1727676643504,-904.74,0.00012499,2]
[339522993,1727676643514,-904.74,0.00012499,2]
[339522995,1727676643523,-904.74,0.00012499,2]
[339522997,1727676643531,-904.74,0.00012499,2]
[339523000,1727676643541,-904.74,0.00012499,2]
[339523001,1727676643551,-904.74,0.00012499,2]
[339523003,1727676643559,-904.74,0.00012499,2]
[339523005,1727676643568,-904.74,0.00012499,2]
[339523007,1727676643577,-904.74,0.00012499,2]
[339523009,1727676643587,-904.74,0.00012499,2]
[339523011,1727676643595,-904.74,0.00012499,2]
[339523013,1727676643604,-904.74,0.00012499,2]
[339523015,1727676643613,-904.74,0.00012499,2]
[339523017,1727676643622,-904.83794997,0.00012499,2]
[339523019,1727676643630,-500.0,0.00012499,2]
[339523021,1727676643639,-500.0,0.00012499,2]
[339523023,1727676643649,-500.0,0.00012499,2]
[339523025,1727676643658,-500.0,0.00012499,2]
[339523026,1727676643667,-500.0,0.00012499,2]
[339523029,1727676643676,-502.18610973,0.00012499,2]
[339523030,1727676643685,-709.54,0.00012499,2]
[339523033,1727676643694,-709.54,0.00012499,2]
[339523035,1727676643704,-709.54,0.00012499,2]
[339523037,1727676643713,-709.54,0.00012499,2]
[339523038,1727676643722,-709.54,0.00012499,2]
[339523040,1727676643731,-709.54,0.00012499,2]
[339523042,1727676643741,-709.54,0.00012499,2]
[339523044,1727676643751,-709.54,0.00012499,2]
[339523047,1727676643760,-709.54,0.00012499,2]
[339523049,1727676643770,-709.54,0.00012499,2]
[339523051,1727676643779,-709.54,0.00012499,2]
[339523053,1727676643791,-709.54,0.00012499,2]
[339523055,1727676643801,-709.54,0.00012499,2]
[339523057,1727676643810,-709.54,0.00012499,2]
[339523059,1727676643819,-709.54,0.00012499,2]
[339523061,1727676643828,-709.54,0.00012499,2]
[339523063,1727676643838,-709.54,0.00012499,2]
[339523065,1727676643847,-709.54,0.00012499,2]
[339523083,1727676644010,-709.54,0.00012499,2]
[339523085,1727676644021,-709.54,0.00012499,2]
[339523087,1727676644030,-709.54,0.00012499,2]
[339523089,1727676644040,-709.60151423,0.00012499,2]
[339523091,1727676644050,-500.0,0.00012499,2]
[339523093,1727676644060,-500.0,0.00012499,2]
[339523095,1727676644069,-500.0,0.00012499,2]
[339523097,1727676644079,-500.0,0.00012499,2]
[339523099,1727676644088,-500.0,0.00012499,2]
[339523101,1727676644098,-500.0,0.00012499,2]
[339523103,1727676644107,-500.0,0.00012499,2]
[339523105,1727676644117,-500.0,0.00012499,2]
[339523107,1727676644126,-500.0,0.00012499,2]
[339523109,1727676644136,-500.0,0.00012499,2]
[339523111,1727676644145,-500.0,0.00012499,2]
[339523113,1727676644156,-500.0,0.00012499,2]
[339523115,1727676644166,-281.24445528,0.00012499,2]
[339523117,1727676644175,-500.0,0.00012499,2]
[339523119,1727676644185,-599.35037674,0.00012499,2]
[339523121,1727676644194,-500.0,0.00012499,2]
[339523123,1727676644203,-500.0,0.00012499,2]
[339523125,1727676644213,-500.0,0.00012499,2]
[339523127,1727676644222,-500.0,0.00012499,2]
[339523129,1727676644231,-500.0,0.00012499,2]
[339523131,1727676644241,-500.0,0.00012499,2]
[339523133,1727676644251,-500.0,0.00012499,2]
[339523135,1727676644260,-500.0,0.00012499,2]
[339523137,1727676644269,-500.0,0.00012499,2]
[339523139,1727676644279,-251.12780534,0.00012499,2]
[339523141,1727676644288,-500.0,0.00012499,2]
[339523143,1727676644298,-500.0,0.00012499,2]
[339523144,1727676644308,-500.0,0.00012499,2]
[339523146,1727676644320,-500.0,0.00012499,2]
[339523148,1727676644330,-397.18,0.00012499,2]
[339523150,1727676644339,-500.0,0.00012499,2]
[339523152,1727676644349,-500.0,0.00012499,2]
[339523153,1727676644358,-500.0,0.00012499,2]
[339523154,1727676644367,-500.0,0.00012499,2]
[339523155,1727676644376,-500.0,0.00012499,2]
[339523156,1727676644385,-500.0,0.00012499,2]
[339523157,1727676644395,-500.0,0.00012499,2]
[339523158,1727676644404,-500.0,0.00012499,2]
[339523159,1727676644413,-500.0,0.00012499,2]
[339523160,1727676644422,-500.0,0.00012499,2]
[339523161,1727676644432,-500.0,0.00012499,2]
[339523162,1727676644441,-500.0,0.00012499,2]
[339523163,1727676644450,-500.0,0.00012499,2]
[339523164,1727676644459,-627.88426298,0.00012499,2]
[339523165,1727676644468,-500.0,0.00012499,2]
[339523166,1727676644478,-500.0,0.00012499,2]
[339523167,1727676644487,-500.0,0.00012499,2]
[339523168,1727676644496,-505.19159021,0.00012499,2]
[339523169,1727676644506,-500.0,0.00012499,2]
[339523170,1727676644515,-500.0,0.00012499,2]
[339523171,1727676644524,-500.0,0.00012499,2]
[339523172,1727676644533,-500.0,0.00012499,2]
[339523173,1727676644542,-502.82502319,0.00012499,2]
[339523174,1727676644552,-500.0,0.00012499,2]
[339523175,1727676644562,-500.0,0.00012499,2]
[339523176,1727676644571,-500.0,0.00012499,2]
[339523177,1727676644582,-500.0,0.00012499,2]
[339523179,1727676644591,-500.0,0.00012499,2]
[339523181,1727676644601,-500.0,0.00012499,2]